Cogmind - Beta 12 @@@ ROGUE MODE // 2023.08.05 @ 02:20:52 Player: Roxy Result: Destroyed by S-27 Virus with Autogun Performance ------------- Evolutions (3) 1500 Regions Visited (4) 800 Robots Destroyed (45) 225 Value Destroyed (1561) 1561 Prototype IDs (1) 20 Alien Tech Used (0) 0 Bonus (0) 0 TOTAL SCORE: 4106 Bonus ------- None Cogmind --------- Core Integrity 0/700 Matter 293/300 Energy 100/100 System Corruption 0% Temperature Cool (0) Movement Core (350) Ox6 Location -7/Factory Parts ------- > --- POWER (2) -------- (None) > --- PROPULSION (4) --- (None) > --- UTILITY (4) ------ Large Storage Unit > --- WEAPON (3) ------- (None) > --- INVENTORY (15) --- (None) Peak State ------------ > --- POWER ------------ Ion Engine Light Nuclear Core > --- PROPULSION ------- Aluminum Leg Aluminum Leg Aluminum Leg Carbon-fiber Leg > --- UTILITY ---------- Disposable Heat Sink Large Storage Unit High-capacity Matter Pod Improved Sensor Array > --- WEAPON ----------- Heavy EM Pulse Gun Light Assault Rifle High-powered Shotgun > --- INVENTORY -------- Heavy Ion Engine Aluminum Leg Kinecellerator System Restoration Module Small Laser [Rating: 24] Favorites ----------- Power Ion Engine Engine Ion Engine Power Core Light Nuclear Core Propulsion Aluminum Leg Leg Aluminum Leg Wheel Wheel Utility Sensor Array Device Sensor Array Storage Small Storage Unit Weapon Heavy Assault Rifle Energy Gun Medium Laser Ballistic Gun Heavy Assault Rifle Ballistic Cannon Advanced Assault Cannon Build | -11 -10 -9 -8 -7 ------- Run | Jun Mat Mat Mat Fac Slots Evolved 6 | . . 2 2 2 Power 1 | . . . 1 . Propulsion 2 | . . 1 . 1 Utility 2 | . . . 1 1 Weapon 1 | . . 1 . . Parts Attached 50 | 6 5 5 19 15 Power 7 | 1 . . 5 1 Engine 6 | 1 . . 4 1 Core 1 | . . . 1 . Reactor . | . . . . . Propulsion 17 | 2 3 2 7 3 Treads . | . . . . . Leg 16 | 2 3 2 7 2 Wheel 1 | . . . . 1 Hover . | . . . . . Flight . | . . . . . Utility 11 | 1 2 . 2 6 Device 7 | . 2 . 1 4 Storage 4 | 1 . . 1 2 Processor . | . . . . . Hackware . | . . . . . Protection . | . . . . . Artifact . | . . . . . Weapon 15 | 2 . 3 5 5 Energy Gun 6 | 1 . 1 1 3 Energy Cannon . | . . . . . Ballistic Gun 8 | 1 . 2 4 1 Ballistic Cannon 1 | . . . . 1 Launcher . | . . . . . Special Weapon . | . . . . . Impact Weapon . | . . . . . Slashing Weapon . | . . . . . Piercing Weapon . | . . . . . Special Melee Weapon . | . . . . . Unidentified Prototypes 1 | . . . . 1 Parts Lost 34 | . . . 12 22 Power 6 | . . . 3 3 Propulsion 11 | . . . 5 6 Utility 5 | . . . . 5 Weapon 12 | . . . 4 8 Highest Loss Streak 16 | . . . 6 16 To Critical Strikes . | . . . . . Average Slot Usage (%) 82 | . 95 96 93 52 Engine 10 | . 14 11 15 2 Leg 22 | . 27 29 25 11 Device 12 | . 10 11 17 8 Storage 10 | . 14 11 9 10 Energy Gun 8 | . 14 11 8 3 Ballistic Gun 15 | . 14 22 17 7 Naked Turns . | . . . . . Heaviest Build 62 | 14 15 19 60 62 Greatest Support 45 | 20 20 30 40 45 Greatest Overweight (x) 9 | . 4 . 3 9 Average Overweight (x) . | . . . . 2 Largest Inventory Capacity 20 | 8 8 8 20 20 Average Capacity 12 | 6 8 8 16 15 Most Carried 9 | 5 8 8 9 7 Average Carried 5 | 2 6 7 6 2 Final Capacity 20 | 8 8 8 20 15 Final Carried 8 | 2 8 8 6 . Class Distribution -------------------- 44% | Scavenger-Skirmisher 34% | Mutant 16% | Skirmisher 4% | Scavenger-Mutant Dominant Class ---------------- Mutant | -10/Materials Skirmisher | -9/Materials Scavenger-Skirmisher | -8/Materials Mutant | -7/Factory Resources | -11 -10 -9 -8 -7 ----------- Run | Jun Mat Mat Mat Fac Matter Collected 1368 | 229 97 336 444 262 Remotely . | . . . . . Salvage Created 1655 | . 97 396 808 354 Parts 85 | . 9 21 41 14 Haulers Intercepted . | . . . . . Recyclers Shooed 1 | . . . 1 . Parts Field Recycled . | . . . . . Retrieved Matter . | . . . . . Parts Self-Destructed . | . . . . . Prevented . | . . . . . Kills | -11 -10 -9 -8 -7 ------- Run | Jun Mat Mat Mat Fac Combat Hostiles Destroyed 40 | . 3 13 15 9 Guns 34 | . 3 13 15 3 Cannons 6 | . . . . 6 Classes Destroyed 9 | . 2 2 4 1 Worker 1 | . . . 1 . Operator 1 | . . . . 1 Watcher 3 | . 2 . 1 . Swarmer 12 | . 3 6 . 3 Grunt 14 | . . 5 7 2 Brawler 1 | . . . 1 . Sentry 10 | . . 2 4 4 Specialist 2 | . . . 2 . Heavy 1 | . . . 1 . Best Kill Streak 5 | . 3 3 5 3 Combat Bots Only 5 | . 3 3 5 3 Max Kills in Single Turn 2 | . 2 1 1 1 Gunslinging . | . . . . . Exploded . | . . . . . Melee . | . . . . . Uniques/NPCs Destroyed . | . . . . . Combat | -11 -10 -9 -8 -7 -------- Run | Jun Mat Mat Mat Fac Damage Taken 3842 | . 94 220 1128 2400 Core 962 | . 33 27 197 705 Absorbed by Shields . | . . . . . Regen/Repaired (Parts) 97 | . . . 97 . Core Remaining (%) 85 | 100 86 93 64 . Volleys Fired 133 | . 6 23 48 56 Largest 3 | . 2 3 3 3 Hottest 120 | . 70 108 111 120 Shots Fired 302 | . 12 67 134 89 Gun 282 | . 12 67 134 69 Cannon 20 | . . . . 20 Launcher . | . . . . . Special . | . . . . . Kinetic 206 | . 6 46 95 59 Thermal 67 | . 6 21 26 14 Explosive . | . . . . . Electromagnetic 29 | . . . 13 16 Robot Hit Streak 33 | . 3 9 15 33 Robot Miss Streak 4 | . 1 3 4 2 Penetration Max . | . . . . . Secondary Targets 6 | . . 2 4 . Max Gunslinging Chain 1 | . . 1 1 . Shots Hit Robots 215 | . 7 43 86 79 Core Hits 93 | . 5 21 40 27 Critical Kills 2 | . . 1 1 . Critical Parts Destroyed 2 | . . 1 1 . Critical Strikes 8 | . . 3 3 2 Burn 2 | . . 1 1 . Destroy 4 | . . 2 2 . Blast 2 | . . . . 2 Melee Attacks . | . . . . . Impact . | . . . . . Slashing . | . . . . . Piercing . | . . . . . Sneak Attacks . | . . . . . Combat Hostiles . | . . . . . Follow-up Attacks . | . . . . . Damage Inflicted 3565 | . 102 615 1421 1427 Guns 3070 | . 102 615 1421 932 Cannons 494 | . . . . 494 Explosions . | . . . . . Melee . | . . . . . Ramming 1 | . . . . 1 Kinetic 2463 | . 78 415 962 1008 Thermal 776 | . 24 200 305 247 Explosive . | . . . . . Electromagnetic 325 | . . . 154 171 Impact . | . . . . . Slashing . | . . . . . Piercing . | . . . . . Highest Corruption . | . . . . . Average Corruption . | . . . . . Corruption Purged . | . . . . . Corruption Blocked . | . . . . . Overload Shots . | . . . . . Overflow Damage 12 | . . . . 12 Projectiles 12 | . . . . 12 Explosions . | . . . . . Melee . | . . . . . Knockbacks 3 | . . . . 3 Impact 1 | . . . . 1 Kinetic 2 | . . . . 2 Secondary . | . . . . . Self-Inflicted Damage . | . . . . . Shots . | . . . . . Rammed 1 | . . . . 1 Targets Rammed 1 | . . . . 1 Kicked . | . . . . . Crushed . | . . . . . Highest Temperature 199 | . 27 130 199 188 Average Temperature 68 | . 10 47 88 56 Received Heat Transfer 1404 | . . 84 468 852 Siege Activations . | . . . . . Robots Corrupted . | . . . . . Combat Hostiles . | . . . . . Parts Fried 1 | . . . . 1 Impact Corruptions . | . . . . . Robots Melted . | . . . . . Combat Hostiles . | . . . . . Parts Melted 4 | . . 2 . 2 Heat Transferred 2067 | . 74 629 814 550 Parts Sabotaged . | . . . . . Parts Stolen . | . . . . . Parts Stripped . | . . . . . Power Chain Reactions . | . . . . . Missiles Intercepted . | . . . . . Alert | -11 -10 -9 -8 -7 ------- Run | Jun Mat Mat Mat Fac Peak Influence 335 | . 84 335 296 145 Initial 125 | . . 35 86 125 Average 127 | . 57 176 160 96 Maximum Alert Level 1 | . . 1 1 . Low Security (%) 78 | 100 100 45 72 100 Level 1 21 | . . 54 27 . Level 2 . | . . . . . Level 3 . | . . . . . Level 4 . | . . . . . Level 5 . | . . . . . High Security . | . . . . . Max Security . | . . . . . Squads Dispatched 8 | . . . 2 6 Investigation . | . . . . . Extermination . | . . . . . Reinforcement 2 | . . . 2 . Assault . | . . . . . Garrison 6 | . . . . 6 Intercept . | . . . . . Searches Triggered . | . . . . . Construction Impeded . | . . . . . Haulers Reinforced . | . . . . . Active Scanning Responses . | . . . . . Cargo Convoy Interrupts . | . . . . . Stealth | -11 -10 -9 -8 -7 --------- Run | Jun Mat Mat Mat Fac Distress Signals 4 | . . . 2 2 Communications Jammed . | . . . . . Distress Signals . | . . . . . Times Spotted 59 | . 6 15 20 18 Peak Tracking Total 6 | . 4 5 6 5 Tactical Retreats 5 | . . 1 3 1 Traps | -11 -10 -9 -8 -7 ------- Run | Jun Mat Mat Mat Fac Traps Triggered 3 | . 2 . 1 . Indirectly . | . . . . . Trap Hack Attempts . | . . . . . Triggered . | . . . . . Disarmed . | . . . . . Reprogrammed . | . . . . . Reused . | . . . . . Traps Extracted . | . . . . . Installed . | . . . . . Triggered . | . . . . . Machines | -11 -10 -9 -8 -7 ---------- Run | Jun Mat Mat Mat Fac Machines Disabled 1 | . . . . 1 Max in Single Turn 1 | . . . . 1 Machines Repaired . | . . . . . Machines Sabotaged . | . . . . . Overloaded Fab Kills . | . . . . . Hacking | -11 -10 -9 -8 -7 --------- Run | Jun Mat Mat Mat Fac Machines Accessed 10 | . 3 3 4 . Terminals 7 | . 2 2 3 . Fabricators . | . . . . . Repair Stations 1 | . . . 1 . Recycling Units 2 | . 1 1 . . Scanalyzers . | . . . . . Garrison Access . | . . . . . Total Hacks 22 | . 5 6 11 . Successful 12 | . 3 2 7 . Failed 10 | . 2 4 4 . Catastrophic 1 | . . 1 . . Database Lockouts . | . . . . . Manual . | . . . . . Terminals 12 | . 4 4 4 . Fabricators . | . . . . . Repair Stations 7 | . . . 7 . Recycling Units 3 | . 1 2 . . Scanalyzers . | . . . . . Garrison Access . | . . . . . Terminal Hacks 7 | . 2 1 4 . Record 1 | . . . 1 . Robot Analysis 1 | . 1 . . . Alert Level 2 | . 1 1 . . Zone Layout 3 | . . . 3 . Fabricator Hacks . | . . . . . Repair Station Hacks 3 | . . . 3 . Scan Component 2 | . . . 2 . Repair 1 | . . . 1 . Recycling Unit Hacks 2 | . 1 1 . . Retrieve Components 2 | . 1 1 . . Scanalyzer . | . . . . . Garrison Access Hacks . | . . . . . Unauthorized Hacks . | . . . . . Terminals . | . . . . . Fabricators . | . . . . . Repair Stations . | . . . . . Recycling Units . | . . . . . Scanalyzers . | . . . . . Garrison Access . | . . . . . Data Cores Recovered 1 | . . . . 1 Used . | . . . . . Hacking Detections 6 | . 1 1 4 . Full Trace Events 1 | . . 1 . . Feedback Events . | . . . . . Feedback Blocked . | . . . . . Robot Schematics Acquired . | . . . . . Robots Built . | . . . . . Authchips . | . . . . . Time . | . . . . . Total Robot Build Rating . | . . . . . Part Schematics Acquired . | . . . . . Parts Built . | . . . . . Authchips . | . . . . . Time . | . . . . . Total Part Build Rating . | . . . . . Parts Repaired 1 | . . . 1 . Time 53 | . . . 53 . Parts Recycled . | . . . . . Recycled Matter . | . . . . . Retrieved Matter . | . . . . . Retrieved Components 4 | . 1 3 . . Parts Scanalyzed . | . . . . . Part Schematics Acquired . | . . . . . Parts Damaged . | . . . . . Bothacking | -11 -10 -9 -8 -7 ------------ Run | Jun Mat Mat Mat Fac Used RIF Installer . | . . . . . Robots Hacked . | . . . . . Non-combat . | . . . . . Combat . | . . . . . Robot Hacks Applied . | . . . . . Relay Couplers Released . | . . . . . Fabnet Peak Effective % . | . . . . . Robots Rewired . | . . . . . Allies Hacked . | . . . . . Hacks Repelled . | . . . . . Allies | -11 -10 -9 -8 -7 -------- Run | Jun Mat Mat Mat Fac Total Allies . | . . . . . Largest Group . | . . . . . Highest-Rated Group . | . . . . . Highest-Rated Ally . | . . . . . Total Orders . | . . . . . Ally Attacks . | . . . . . Total Damage . | . . . . . Kills . | . . . . . Allies Corrupted . | . . . . . Allies Melted . | . . . . . Intel | -11 -10 -9 -8 -7 ------- Run | Jun Mat Mat Mat Fac Robot Analysis Total 1 | . 1 . . . Derelict Logs Recovered . | . . . . . Drone Launches . | . . . . . Drone Recoveries . | . . . . . Exploration | -11 -10 -9 -8 -7 ------------- Run | Jun Mat Mat Mat Fac Turns Passed 2350 | 46 348 514 779 663 Spaces Moved 1142 | 36 252 332 315 207 Core 71 | 13 1 . . 57 Treads . | . . . . . Legs 1057 | 23 251 332 315 136 Wheels 14 | . . . . 14 Hover . | . . . . . Flight . | . . . . . Fastest Speed 50 | 50 120 120 120 110 Average Speed 148 | 94 120 120 158 224 Slowest Speed 500 | 120 250 120 330 500 Overloaded Moves . | . . . . . Propulsion Burnouts . | . . . . . Robots Hopped . | . . . . . Cave-ins Triggered . | . . . . . Exploration Rate (%) 29 | 4 56 48 34 5 Regions Visited 4 Branch Regions . Pre-discovered Areas . | . . . . . Known Exits Taken . | . . . . . Unknown Exits Taken 4 | 1 1 1 1 . Scrap Searched . | . . . . . Spaces Dug . | . . . . . Terrain Destroyed . | . . . . . Melee . | . . . . . Projectile . | . . . . . AOE . | . . . . . Terrain Rammed . | . . . . . Walls Destroyed . | . . . . . Machines Disabled . | . . . . . Actions | -11 -10 -9 -8 -7 --------- Run | Jun Mat Mat Mat Fac Total 1545 | 46 282 397 493 327 Wait 175 | . 12 32 95 36 Move 1138 | 35 251 331 314 207 Hop . | . . . . . Pick Up 40 | 5 7 3 16 9 Fast Attach 7 | 3 4 . . . Attach 35 | 3 1 2 17 12 Detach . | . . . . . Swap 8 | . . 3 2 3 Drop 8 | . 1 3 1 3 Fire 133 | . 6 23 48 56 Melee . | . . . . . Ram 1 | . . . . 1 Kick . | . . . . . Crush . | . . . . . Escape Stasis . | . . . . . Rewire . | . . . . . Trap . | . . . . . Miscellaneous . | . . . . . Route ------- -11/Junkyard -10/Materials (discovered 2 exits: *Mat / [*Min]) -9/Materials (discovered 3 exits: *Mat / [*Min] / [*Sto]) -8/Materials -7/Factory (discovered 1 exit: [*Fac]) History --------- Turn | Location | Event 11 | -11/Junkyard | Discovered new exit (range 16) 47 | -11/Junkyard | Entered Materials 110 | -10/Materials | Discovered new exit (range 12) 272 | -10/Materials | Discovered new exit (range 16) 314 | -10/Materials | Build established: Mutant 395 | -10/Materials | Entered another Materials area 395 | -9/Materials | Evolved 2 slots: Propulsion x1, Weapon x1 476 | -9/Materials | Discovered new exit (range 11) 708 | -9/Materials | Build established: Skirmisher 724 | -9/Materials | Discovered new exit (range 16) 891 | -9/Materials | Discovered new exit (range 16) 909 | -9/Materials | Entered another Materials area 909 | -8/Materials | Evolved 2 slots: Power x1, Utility x1 1324 | -8/Materials | Lost 6 parts (2p3n1w) 1361 | -8/Materials | Build established: Scavenger-Skirmisher 1501 | -8/Materials | Discovered new exit (range 6) 1577 | -8/Materials | Lost 5 parts (1p2n2w) 1673 | -8/Materials | Repaired Broken Carbon-fiber Leg 1688 | -8/Materials | Entered Factory 1688 | -7/Factory | Evolved 2 slots: Propulsion x1, Utility x1 2024 | -7/Factory | Lost 16 parts (3p5n3u5w) 2046 | -7/Factory | Garrison activated, responded to threat 2082 | -7/Factory | Lost 3 parts (1n1u1w) 2182 | -7/Factory | Core integrity fell below 50% 2227 | -7/Factory | Build established: Mutant 2328 | -7/Factory | Discovered new exit (range 15) 2338 | -7/Factory | Core integrity fell below 20% 2351 | -7/Factory | Destroyed by S-27 Virus with Autogun Last Messages --------------- K-01 Serf collects debris. G-47 Trooper destroyed. Adv. Assault Cannon destroyed. Critical hit (Burn: +37). K-01 Serf collects debris. Autogun destroyed. Slammed into G-47 Trooper. G-47 Trooper knocked back. EXIT=FOUND Acquired 49 matter. R-06 Scavenger collects Imp. Heat Sink. R-06 Scavenger collects Aluminum Leg. Critical hit (Burn: +37). M-28 Smith repairs R-06 Scavenger. K-01 Serf collects debris. M-28 Smith repairs G-47 Trooper. M-28 Smith repairs Aluminum Leg. S-27 Virus destroyed. M-28 Smith repairs Aluminum Leg. R-06 Scavenger collects Autogun. Map ----- +----------------------------------------------------+ | ?????????????????????????????????????????????????? | | ?????????????????????????????????????????????????? | | ?????????????????????????????????????????????????? | | ?????????????????????????????????????????????????? | | ?????????????????????????????????????????????????? | | ?????????????????????????????????????????????????? | | ?????????????????????????????????????????????????? | | ?????????????????????????????????????????????????? | | ?????????????????????????????????????????????????? | | ?????????????????????????????????????????????????? | | ?????????????????????????????????????????????????? | | ?????????????????????????????????????????????????? | | ?????????????????????????????????????????????????? | | ?????????????????????????????????????????????????? | | ??????????????????????#######????????????????????? | | ??????????????????????# #????????????????????? | | ??????????????????????# #????????????????????? | | ??????????????????????? < ?????????????????????? | | ??????????????????????? ?????????????????????? | | ??????????????????????? ?????????????????????? | | ???????????????????????# #?????????????????????? | | ???????????????????????# #?????????????????????? | | ???????????????????#???# +?????????????????????? | | ??????????????????? ??# #?????????????????????? | | ????????????????????" ?# #?????????????????????? | | ????????????????????? # @ #?????????????????????? | | ?????????????????????? # #?????????????????????? | | ???????????????????????+= #?????????????????????? | | ???????????????????????#%s #?????????????????????? | | ???????????????????????#grg#?????????????????????? | | ???????????????????????# m #?????????????????????? | | ???????????????????????# kk######????????????????? | | ???????????????????????# ########?????????? | | ???????????????????????#s ??? | | ???????????????????????# #########????????? | | ???????????????????????## ### #????????????????? | | ????????????????????????# #?# #????????????????? | | ????????????????????????# ??# #????????????????? | | ????????????????????????# ??# #????????????????? | | ????????????????????????# ??# #??##????????????? | | ????????????????????????# ??# ### #######?##???? | | ???????????????????????? ??# # #???? | | ???????????????????????? ??# # """" """" #???? | | ???????????????????????? T??# # """" """" #???? | | ???????????????????????? ???# # """" """" #???? | | ???????????????????????? ???# # """ """" #???? | | ????????????????????????#???# #% #???? | | ????????????????????????????# %+ #???? | | ????????????????????????????# # #???? | | ????????????????????????????# %%#"S #???? | +----------------------------------------------------+ Best States ------------- Heat Dissipation 48 Coolant Potential 50 Energy Generation 19 Energy Capacity 400 Matter Stores 500 Matter Capacity 500 Sight Range 16 Robot Scan Range 15 Terrain Scan Range 14 Terrain Scan Density 10 Evasion (%) 55 Kinecelleration 30 Item Schematics ----------------- None Robot Schematics ------------------ None Fabricated ------------ Nothing Alien Tech Used ----------------- None Achievements -------------- None Challenges ------------ None Game ------ Seed GuidedThunderBlaster Manual? 0 Play Time 00:24:54 Cumulative 10.6 hours Start 2023.08.05 @ 01:57:19 End 2023.08.05 @ 02:20:52 Sessions 1 Manual Loads 0 Difficulty Rogue Special Mode None Game No. 18 Rogue 18 Adventurer 0 Explorer 0 Win Type - Total 0 Types 0/0/0/0/0/0/0/0/0 Lore% 12 Gallery% 15 Achievement% 12 Wizard Run 0 Options --------- ASCII 0 Keyboard 0 Movement Mouse Keybinds 0 Fullscreen 1 Font 18/SmallcapsGlow Map View 76x50 Tactical HUD 0 Map Filters NONE Filters NONE Steam 1 RUN: fd51c211-b9ca-4008-9c3c-1b26b9950b10